bitfinex-derivatives/quotes_BTCF0:USTF0_20241005
["timestamp","ask_amount","ask_price","bid_price","bid_amount"]
[1728148217051,0.124,61980.0,61977.0,0.12]
[1728148217346,0.128,61980.0,61977.0,0.12]
[1728148217853,0.003,61979.0,61977.0,0.12]
[1728148218248,0.128,61980.0,61977.0,0.12]
[1728148218859,0.003,61980.0,61977.0,0.12]
[1728148219052,0.005,61979.0,61977.0,0.12]
[1728148219747,0.005,61979.0,61978.0,0.06432303]
[1728148219948,0.005,61979.0,61978.0,0.056468]
[1728148221153,0.005,61980.0,61979.0,0.056467]
[1728148221454,0.005,61980.0,61979.0,0.24077638]
[1728148221853,0.005,61980.0,61979.0,0.18430938]
[1728148222353,0.056464,61983.0,61979.0,0.12]
[1728148222550,0.12,61985.0,61981.0,0.04822595]
[1728148222849,0.12,61985.0,61982.0,0.04822595]
[1728148223060,0.12,61985.0,61983.0,0.04822595]
[1728148223554,0.12,61985.0,61980.0,0.093566]
[1728148223555,0.03950855,61984.0,61980.0,0.093566]
[1728148223749,0.03950826,61983.0,61980.0,0.093566]
[1728148223954,0.12,61985.0,61980.0,0.093566]
[1728148224157,0.03950855,61984.0,61980.0,0.093566]
[1728148224455,0.03950855,61983.0,61981.0,0.058466]
[1728148224751,0.03950855,61983.0,61980.0,0.0371]
[1728148224752,0.056461,61986.0,61983.0,0.056464]
[1728148225051,0.03950792,61985.0,61983.0,0.056464]
[1728148225246,0.03950792,61984.0,61983.0,0.056464]
[1728148225441,0.056461,61986.0,61983.0,0.056464]
[1728148225442,0.056461,61986.0,61983.0,0.176464]
[1728148225648,0.0395073,61985.0,61983.0,0.176464]
[1728148225849,0.059461,61986.0,61983.0,0.176464]
[1728148226047,0.03950714,61985.0,61983.0,0.12]
[1728148226251,0.003,61986.0,61985.0,0.056462]
[1728148226551,0.0425071,61986.0,61985.0,0.056462]
[1728148227159,0.004,61986.0,61985.0,0.056462]
[1728148227352,0.001,61986.0,61985.0,0.056462]
[1728148227551,0.00242075,61988.0,61985.0,0.19]
[1728148227755,0.00242075,61988.0,61987.0,0.05646]
[1728148228061,0.0335804,61988.0,61987.0,0.05646]
[1728148228354,0.03357986,61988.0,61987.0,0.05646]
[1728148228753,0.03457986,61988.0,61987.0,0.05646]
[1728148228953,0.03457986,61988.0,61987.0,0.05846]
[1728148230348,0.0038,61994.0,61987.0,0.005]
[1728148230553,0.45691201,61996.0,61991.0,0.19]
[1728148230755,0.417252,61996.0,61991.0,0.19]
[1728148231852,0.056454,61994.0,61988.0,0.29464601]
[1728148232057,0.056454,61994.0,61988.0,0.246458]
[1728148232863,0.3618,61996.0,61988.0,0.246458]
[1728148233163,0.056456,61992.0,61988.0,0.056458]
[1728148233662,0.056456,61992.0,61991.0,0.002]
[1728148234161,0.056456,61992.0,61988.0,0.059458]
[1728148234665,0.3608,61996.0,61988.0,0.004]
[1728148234666,0.19,61991.0,61988.0,0.004]
[1728148234962,0.417258,61989.0,61988.0,0.004]
[1728148236050,0.417258,61989.0,61988.0,0.060459]
[1728148236051,0.3608,61989.0,61988.0,0.060459]
[1728148236459,0.3608,61989.0,61988.0,0.057459]
[1728148236660,0.3608,61989.0,61988.0,0.14574701]
[1728148236964,0.3608,61996.0,61991.0,0.056456]
[1728148237266,0.3608,61996.0,61992.0,0.19]
[1728148237761,0.3608,61996.0,61992.0,0.246455]
[1728148238456,0.17802538,61995.0,61992.0,0.246455]
[1728148238653,0.29628446,61995.0,61992.0,0.246455]
[1728148238866,0.33620464,61994.0,61992.0,0.246455]
[1728148239056,0.12017153,61993.0,61992.0,0.246455]
[1728148239562,0.27975064,61993.0,61992.0,0.246455]
[1728148240161,0.12017153,61993.0,61992.0,0.246455]
[1728148241062,0.12617153,61993.0,61992.0,0.246455]
[1728148241461,0.19680257,61993.0,61992.0,0.246455]
[1728148241654,0.12617153,61993.0,61992.0,0.246455]
[1728148242566,0.28592203,61993.0,61992.0,0.246455]
[1728148242758,0.12617153,61993.0,61992.0,0.246455]
[1728148243458,0.12617153,61993.0,61992.0,0.056455]
[1728148245360,0.03715866,61993.0,61992.0,0.056455]
[1728148245664,0.006,61993.0,61992.0,0.056455]
[1728148246370,0.006,61993.0,61992.0,0.36938227]
[1728148248571,0.060248,62001.0,61993.0,0.056455]
[1728148248761,0.056448,62001.0,61997.0,0.08049478]
[1728148249263,0.056448,62001.0,62000.0,0.19]
[1728148250865,0.063448,62001.0,62000.0,0.19]
[1728148251072,0.067448,62001.0,62000.0,0.19]
[1728148251274,0.060448,62001.0,62000.0,0.19]
[1728148251457,0.070448,62001.0,62000.0,0.19]
[1728148251660,0.070448,62001.0,62000.0,0.12]
[1728148252161,0.077448,62001.0,62000.0,0.121]
[1728148252768,0.077448,62001.0,62000.0,0.001]
[1728148252964,0.197448,62001.0,62000.0,0.001]
[1728148253566,0.077448,62001.0,62000.0,0.001]
[1728148256667,0.438248,62001.0,62000.0,0.001]
[1728148257476,0.3818,62001.0,62000.0,0.057448]
[1728148257678,0.021,62001.0,62000.0,0.057448]
[1728148263269,0.021,62001.0,62000.0,0.001]
[1728148263973,0.14115622,62001.0,62000.0,0.001]
[1728148264170,0.14115625,62001.0,62000.0,0.001]
[1728148264478,0.19760325,62001.0,62000.0,0.001]
[1728148265477,0.19760325,62001.0,61989.0,0.056457]
[1728148265478,0.056457,61991.0,61989.0,0.056457]
[1728148265676,0.056462,61985.0,61980.0,0.056466]
[1728148265867,0.056462,61985.0,61978.0,0.19]
[1728148265868,0.17661925,61984.0,61978.0,0.19]
[1728148266070,0.12015625,61983.0,61981.0,0.056466]
[1728148266275,0.12015625,61982.0,61978.0,0.19]
[1728148266475,0.12015625,61981.0,61978.0,0.246468]
[1728148266672,0.056463,61984.0,61978.0,0.246468]
[1728148266673,0.12015625,61980.0,61978.0,0.246468]
[1728148266870,0.056463,61984.0,61980.0,0.005]
[1728148267074,0.12018463,61983.0,61980.0,0.005]
[1728148267270,0.12018463,61982.0,61980.0,0.005]
[1728148267581,0.056459,61989.0,61982.0,0.056464]
[1728148267773,0.12018372,61988.0,61982.0,0.056464]
[1728148267986,0.12018372,61987.0,61982.0,0.056464]
[1728148268278,0.001,61983.0,61982.0,0.056464]
[1728148268582,0.001,61983.0,61982.0,0.246464]
[1728148269476,0.001,61983.0,61982.0,0.251464]
[1728148269679,0.05646,61988.0,61982.0,0.256464]
[1728148269876,0.05646,61988.0,61985.0,0.04831034]
[1728148270080,0.05646,61988.0,61984.0,0.04831034]
[1728148270880,0.05746,61988.0,61984.0,0.04831034]
[1728148271080,0.05746,61988.0,61985.0,0.004]
[1728148271279,0.05646,61988.0,61985.0,0.004]
[1728148271480,0.056461,61986.0,61985.0,0.004]
[1728148272574,0.056461,61986.0,61984.0,0.01]
[1728148272972,0.056461,61986.0,61985.0,0.005]
[1728148273375,0.056461,61986.0,61985.0,0.009]
[1728148273574,0.056461,61986.0,61985.0,0.004]
[1728148273777,0.057461,61986.0,61985.0,0.009]
[1728148273975,0.001,61986.0,61985.0,0.009]
[1728148275981,0.03216105,61986.0,61985.0,0.009]
[1728148279582,0.03216105,61986.0,61985.0,0.129]
[1728148281478,0.03216105,61986.0,61985.0,0.185462]
[1728148283482,0.32044174,61989.0,61988.0,0.056459]
[1728148283683,0.32044174,61989.0,61988.0,0.37986584]
[1728148284892,0.32044174,61989.0,61988.0,0.38086584]
[1728148285680,0.32044174,61989.0,61988.0,0.38386584]
[1728148286291,0.32044174,61989.0,61988.0,0.30338989]
[1728148287197,0.32044174,61989.0,61988.0,0.24693089]
[1728148287888,0.056456,61992.0,61988.0,0.24693089]
[1728148288091,0.056456,61992.0,61989.0,0.20342616]
[1728148288283,0.3608,61990.0,61989.0,0.08049527]
[1728148288488,0.3608,61990.0,61989.0,0.20342622]
[1728148289087,0.3608,61990.0,61989.0,0.12293095]
[1728148289291,0.3608,61990.0,61989.0,0.12493095]
[1728148289790,0.417257,61990.0,61989.0,0.20053456]
[1728148289984,0.417257,61990.0,61989.0,0.20253456]
[1728148290390,0.48792194,61990.0,61989.0,0.122]
[1728148295386,0.5374368,61990.0,61989.0,0.122]
[1728148296001,0.53743585,61990.0,61989.0,0.122]
[1728148297296,0.68130033,61990.0,61989.0,0.122]
[1728148297689,0.53743585,61990.0,61989.0,0.122]
[1728148298500,0.417257,61990.0,61989.0,0.34158249]
[1728148299897,0.417257,61990.0,61989.0,0.24493304]
[1728148300102,0.417257,61990.0,61989.0,0.34174851]
[1728148300603,0.417257,61990.0,61989.0,0.21881547]
[1728148300801,0.417257,61990.0,61989.0,0.24493324]
[1728148300995,0.417257,61990.0,61989.0,0.34174912]
[1728148301187,0.417257,61990.0,61989.0,0.24493324]
[1728148301594,0.3608,61990.0,61989.0,0.24493324]
[1728148301908,0.056454,61994.0,61992.0,0.056455]
[1728148302089,0.056454,61994.0,61993.0,0.24293324]
[1728148302497,0.056454,61994.0,61993.0,0.33973583]
[1728148303702,0.056454,61994.0,61993.0,0.33973292]
[1728148303905,0.057454,61994.0,61993.0,0.33973292]
[1728148304398,0.060454,61994.0,61993.0,0.33973292]
[1728148304607,0.061454,61994.0,61993.0,0.33973292]
[1728148305001,0.058454,61994.0,61993.0,0.33973292]
[1728148305302,0.062454,61994.0,61993.0,0.12]
[1728148313318,0.13311302,61994.0,61993.0,0.08093583]
[1728148313615,0.1826244,61994.0,61993.0,0.08093583]
[1728148315213,0.23213617,61994.0,61993.0,0.08093583]
[1728148316314,0.2321354,61994.0,61993.0,0.08093583]
[1728148317308,0.18262402,61994.0,61993.0,0.08093583]
[1728148320416,0.062454,61994.0,61993.0,0.08093583]
[1728148322210,0.062454,61994.0,61993.0,0.13739083]
[1728148322211,0.006,61994.0,61993.0,0.13739083]
[1728148323617,0.006,61994.0,61993.0,0.18577997]
[1728148324323,0.006,61994.0,61993.0,0.13739083]
[1728148324520,0.006,61994.0,61993.0,0.18578082]
[1728148324713,0.006,61994.0,61993.0,0.13739083]
[1728148335516,0.12616168,61994.0,61993.0,0.10734756]
[1728148337620,0.12616112,61994.0,61993.0,0.10734756]
[1728148343533,0.3934711,62000.0,61994.0,0.056453]
[1728148343728,0.3934711,62000.0,61998.0,0.09672752]
[1728148343729,0.3896711,62000.0,61998.0,0.09672752]
[1728148344032,0.3896711,62000.0,61999.0,0.12291095]
[1728148344618,0.3936711,62000.0,61999.0,0.12291095]
[1728148345936,0.3986711,62000.0,61999.0,0.12291095]
[1728148346131,0.3946711,62000.0,61999.0,0.12391095]
[1728148346333,0.4036711,62000.0,61999.0,0.12391095]
[1728148346727,0.4086711,62000.0,61999.0,0.12491095]
[1728148350340,0.4086711,62000.0,61999.0,0.15435391]
[1728148350539,0.58667718,62000.0,61999.0,0.03144296]
[1728148352445,0.64312518,62000.0,61999.0,0.002]
[1728148352639,0.64312518,62000.0,61999.0,0.122]
[1728148352841,0.76312518,62000.0,61992.0,0.056455]
[1728148353143,0.056454,61994.0,61992.0,0.056455]
[1728148353335,0.12015826,61993.0,61992.0,0.056455]
[1728148354241,0.12015826,61993.0,61992.0,0.176455]
[1728148356038,0.12115826,61993.0,61992.0,0.176455]
[1728148356438,0.12415826,61993.0,61992.0,0.176455]
[1728148358436,0.004,61993.0,61992.0,0.29937433]
[1728148359345,0.004,61993.0,61992.0,0.39610185]
[1728148361544,0.004,61993.0,61992.0,0.39609856]
[1728148363557,0.004,61993.0,61992.0,0.39615125]
[1728148365442,0.03515688,61993.0,61992.0,0.176455]
[1728148365951,0.0846659,61993.0,61992.0,0.176455]
[1728148366247,0.03515688,61993.0,61992.0,0.176455]
[1728148366747,0.12416466,61993.0,61992.0,0.176455]
[1728148367639,0.30040094,61993.0,61992.0,0.176455]
[1728148368141,0.12416466,61993.0,61992.0,0.176455]
[1728148369737,0.21137924,61993.0,61992.0,0.176455]
[1728148369947,0.30038702,61993.0,61992.0,0.176455]
[1728148371049,0.12416466,61993.0,61992.0,0.176455]
[1728148371251,0.12416036,61993.0,61992.0,0.176455]
[1728148371450,0.12415984,61993.0,61992.0,0.176455]
[1728148371850,0.3003822,61993.0,61992.0,0.176455]
[1728148372855,0.12415984,61993.0,61992.0,0.176455]
[1728148373660,0.05645,61998.0,61994.0,0.056453]
[1728148373852,0.05645,61998.0,61997.0,0.12]
[1728148374053,0.05645,61998.0,61997.0,0.39014933]
[1728148374847,0.06145,61998.0,61997.0,0.39014933]
[1728148375156,0.06845,61998.0,61997.0,0.39114933]
[1728148376261,0.06345,61998.0,61997.0,0.121]
[1728148376462,0.07145,61998.0,61997.0,0.39209571]
[1728148378054,0.015,61998.0,61997.0,0.39209571]
[1728148380554,0.13515906,61998.0,61997.0,0.07835872]
[1728148380754,0.13515906,61998.0,61997.0,0.178451]
[1728148381156,0.19160906,61998.0,61997.0,0.122]
[1728148382553,0.19160906,61998.0,61997.0,0.002]
[1728148384258,0.1916103,61998.0,61997.0,0.002]
[1728148384864,0.3116103,61998.0,61997.0,0.002]
[1728148388361,0.3694585,61998.0,61997.0,0.002]
[1728148388556,0.19145,61998.0,61997.0,0.12291392]
[1728148388864,0.15109744,61998.0,61997.0,0.27093268]
[1728148389055,0.15109744,61998.0,61997.0,0.27091452]
[1728148390259,0.15109744,61998.0,61997.0,0.27088478]
[1728148391369,0.15109744,61998.0,61997.0,0.12291393]
[1728148392365,0.15109744,61998.0,61997.0,0.21972371]
[1728148393768,0.15109744,61998.0,61997.0,0.21972633]
[1728148395570,0.03109744,61998.0,61997.0,0.21972633]
[1728148395882,0.03109744,61998.0,61995.0,0.06454028]
[1728148397064,0.03309744,61998.0,61995.0,0.06454028]
[1728148397266,0.03709744,61998.0,61995.0,0.06454028]
[1728148399079,0.056451,61997.0,61995.0,0.06454028]
[1728148399465,0.056451,61997.0,61995.0,0.04840545]
[1728148399466,0.056452,61996.0,61995.0,0.04840545]
[1728148399668,0.056452,61996.0,61992.0,0.06454028]
[1728148399669,0.056455,61993.0,61992.0,0.048409]
[1728148399870,0.056455,61993.0,61981.0,0.21680978]
[1728148399871,0.12,61993.0,61987.0,0.06454028]
[1728148400070,0.056459,61988.0,61985.0,0.06454028]
[1728148400270,0.056459,61988.0,61985.0,0.12]
[1728148401372,0.057459,61988.0,61985.0,0.127]
[1728148401566,0.057459,61988.0,61985.0,0.19154028]
[1728148401971,0.057459,61988.0,61987.0,0.003]
[1728148402680,0.057459,61988.0,61985.0,0.19154028]
[1728148402975,0.056459,61988.0,61987.0,0.12]
[1728148403170,0.056459,61988.0,61987.0,0.125]
[1728148403581,0.056459,61988.0,61987.0,0.128]
[1728148403878,0.1766377,61988.0,61987.0,0.128]
[1728148408086,0.12017479,61988.0,61987.0,0.128]
[1728148408280,0.12017479,61988.0,61987.0,0.18446]
[1728148409275,0.20720631,61988.0,61987.0,0.18446]
[1728148409480,0.29622159,61988.0,61987.0,0.18446]
[1728148409674,0.12017479,61988.0,61987.0,0.18446]
[1728148410691,0.02921057,61991.0,61987.0,0.45488706]
[1728148410692,0.08566657,61991.0,61987.0,0.45488706]
[1728148410982,0.056456,61991.0,61989.0,0.09668723]
[1728148411186,0.056456,61991.0,61990.0,0.12292637]
[1728148411483,0.056456,61991.0,61990.0,0.2196136]
[1728148412796,0.056456,61991.0,61990.0,0.21961122]
[1728148413686,0.056456,61991.0,61990.0,0.22061122]
[1728148413884,0.056456,61991.0,61990.0,0.12392399]
[1728148414183,0.056456,61991.0,61990.0,0.22061396]
[1728148414392,0.056456,61991.0,61990.0,0.12392399]
[1728148417694,0.056456,61991.0,61990.0,0.12392672]
[1728148418997,0.056456,61991.0,61990.0,0.001]
[1728148425701,0.056456,61991.0,61990.0,0.08158961]
[1728148425995,0.08761435,61991.0,61990.0,0.001]
[1728148426205,0.17662631,61991.0,61990.0,0.001]
[1728148426707,0.35267696,61991.0,61990.0,0.001]
[1728148427007,0.17662631,61991.0,61990.0,0.001]
[1728148427498,0.12016695,61991.0,61990.0,0.177457]
[1728148427705,0.12016695,61991.0,61990.0,0.176457]
[1728148428501,0.12016695,61991.0,61990.0,0.20580728]
[1728148433807,0.0151,61995.0,61990.0,0.27226494]
[1728148434109,0.17645,61998.0,61994.0,0.12]
[1728148434298,0.17645,61998.0,61995.0,0.20353401]
[1728148434498,0.17645,61998.0,61995.0,0.08061935]
[1728148434701,0.17645,61998.0,61994.0,0.12]
[1728148434702,0.17645,61998.0,61996.0,0.08061935]
[1728148435295,0.17945,61998.0,61996.0,0.08061935]
[1728148435702,0.18045,61998.0,61996.0,0.08061935]
[1728148436305,0.17645,61998.0,61996.0,0.08061935]
[1728148436513,0.18745,61998.0,61996.0,0.08161935]
[1728148438304,0.06745,61998.0,61997.0,0.12]
[1728148439500,0.06945,61998.0,61997.0,0.122]
[1728148440908,0.24745983,61998.0,61997.0,0.09555329]
[1728148445209,0.19100983,61998.0,61997.0,0.15200429]
[1728148445409,0.19100974,61998.0,61997.0,0.15200429]
[1728148445808,0.19100974,61998.0,61997.0,0.26560429]
[1728148446911,0.30929605,61998.0,61997.0,0.26560429]
[1728148447215,0.36712942,61998.0,61997.0,0.26560429]
[1728148448014,0.36712942,61998.0,61997.0,0.33008139]
[1728148448015,0.013,61998.0,61997.0,0.33008139]
[1728148448714,0.013,61998.0,61997.0,0.74948429]
[1728148450413,0.013,61998.0,61997.0,1.34948429]
[1728148451310,0.013,61998.0,61997.0,0.06644068]
[1728148452310,0.013,61998.0,61997.0,0.002]
[1728148455304,0.013,61998.0,61997.0,0.06644068]
[1728148455509,0.013,61998.0,61997.0,0.002]
[1728148455714,0.013,61998.0,61997.0,0.058451]
[1728148455910,0.08364967,61998.0,61996.0,0.14606191]
[1728148456210,0.1201545,61997.0,61996.0,0.14606191]
[1728148457419,0.056447,62001.0,62000.0,7.8678455]
[1728148457812,0.131846,62002.0,62000.0,7.8678455]
[1728148459015,0.141846,62002.0,62000.0,7.8688455]
[1728148459217,0.150846,62002.0,62000.0,7.8698455]
[1728148461431,0.150846,62002.0,62001.0,0.12]
[1728148462420,0.20034925,62002.0,62001.0,0.12]
[1728148462614,0.19034925,62002.0,62001.0,0.121]
[1728148463010,0.083,62002.0,62001.0,0.121]
[1728148463819,0.084,62002.0,62001.0,0.122]
[1728148470921,0.23084092,62002.0,62001.0,0.122]
[1728148471129,0.23084092,62002.0,62001.0,0.12]
[1728148471729,0.056447,62001.0,62000.0,7.73161265]
[1728148472025,0.20328792,62001.0,62000.0,7.73161265]
[1728148474133,0.21228792,62001.0,62000.0,7.73261265]
[1728148474433,0.21728792,62001.0,62000.0,7.73361265]
[1728148474732,0.1282909,62001.0,62000.0,7.73361265]
[1728148474921,0.21729011,62001.0,62000.0,7.73361265]
[1728148477034,0.24633628,62001.0,62000.0,7.47537343]
[1728148478030,0.09949317,62001.0,62000.0,7.47537343]
[1728148487247,0.13899252,62001.0,62000.0,7.20298148]
[1728148489051,0.13899293,62001.0,62000.0,7.20298148]
[1728148490244,0.09949317,62001.0,62000.0,7.20298148]
[1728148493247,0.09949317,62001.0,62000.0,6.94471169]
[1728148493248,0.2463551,62001.0,62000.0,6.94471169]
[1728148495737,0.3663551,62001.0,62000.0,6.94471169]
[1728148496748,0.36635331,62001.0,62000.0,6.94471169]
[1728148498648,0.27734535,62001.0,62000.0,6.94471169]
[1728148498841,0.36635439,62001.0,62000.0,6.94471169]
[1728148499044,0.36635439,62001.0,62000.0,6.68644395]
[1728148500252,0.32685507,62001.0,62000.0,6.68644395]
[1728148500946,0.81073507,62001.0,62000.0,6.68644395]
[1728148501252,0.70337317,62001.0,62000.0,6.68644395]
[1728148502949,1.30337317,62001.0,62000.0,6.68644395]
[1728148505546,1.30337317,62001.0,62000.0,6.67644395]
[1728148508453,2.02497317,62001.0,62000.0,6.67644395]
[1728148508656,1.42497317,62001.0,62000.0,6.67644395]
[1728148510151,2.02497317,62001.0,62000.0,6.67644395]
[1728148510343,2.02497317,62001.0,62000.0,6.20175695]
[1728148510545,2.02497317,62001.0,62000.0,5.96274239]
[1728148511850,2.02497317,62001.0,62000.0,5.87419339]
[1728148512056,2.07449258,62001.0,62000.0,5.39696998]
[1728148512247,2.07449258,62001.0,62000.0,5.14866298]
[1728148512445,2.07449258,62001.0,62000.0,4.61037163]
[1728148512642,2.07449258,62001.0,62000.0,4.04977741]
[1728148512948,2.2345784,62001.0,62000.0,4.04977741]
[1728148513148,2.2345784,62001.0,62000.0,3.60578241]
[1728148513457,2.2345784,62001.0,62000.0,1.91042817]
[1728148513648,2.07449258,62001.0,62000.0,1.59477217]
[1728148514059,2.07449258,62001.0,62000.0,1.44154217]
[1728148514261,2.07449258,62001.0,62000.0,1.14810417]
[1728148514554,2.23427797,62001.0,62000.0,1.14810417]
[1728148515153,2.1323668,62001.0,62000.0,0.65577558]
[1728148515356,2.1323668,62001.0,62000.0,0.10813404]
[1728148515552,2.1323668,62001.0,61988.0,0.0075]
[1728148515754,0.056464,61983.0,61982.0,0.0075]
[1728148515951,0.056466,61981.0,61977.0,0.00242067]
[1728148516258,0.056466,61981.0,61975.0,0.0348]
[1728148516259,0.12,61978.0,61975.0,0.056471]
[1728148516454,0.056466,61981.0,61975.0,0.056471]
[1728148516455,0.12,61976.0,61975.0,0.05647]
[1728148516649,0.29362263,61976.0,61975.0,0.05647]
[1728148516950,0.17362263,61976.0,61975.0,0.05647]
[1728148517153,0.29362263,61976.0,61975.0,0.05647]
[1728148517548,0.29362263,61976.0,61975.0,0.07047]
[1728148518750,0.29362263,61976.0,61975.0,0.08447]
[1728148519068,0.29462263,61976.0,61975.0,0.08447]
[1728148519357,0.65542263,61976.0,61975.0,0.08447]
[1728148520156,0.53542263,61976.0,61975.0,0.08447]
[1728148520355,0.72446846,61976.0,61975.0,0.56855]
[1728148520562,0.0151,61983.0,61975.0,1.52935]
[1728148520563,0.06621945,61982.0,61975.0,1.52935]
[1728148520764,0.3608,61987.0,61980.0,0.12]
[1728148520765,0.08131945,61986.0,61980.0,0.12]
[1728148520950,0.06621945,61985.0,61981.0,0.0681]
[1728148521150,0.3608,61987.0,61986.0,0.16965101]
[1728148521361,0.42700612,61987.0,61986.0,0.16965101]
[1728148522463,0.3608,61987.0,61986.0,0.16965101]
[1728148523157,0.2527,61987.0,61986.0,0.17565101]
[1728148523362,0.21233812,61987.0,61986.0,0.17565101]
[1728148523551,0.21233812,61987.0,61986.0,0.18165101]
[1728148523758,0.21233812,61987.0,61986.0,0.28209169]
[1728148524151,0.19483812,61987.0,61986.0,0.70161101]
[1728148525254,0.0151,61991.0,61986.0,1.30161101]
[1728148525454,0.00242068,61996.0,61995.0,0.056453]
[1728148525455,0.01752068,61996.0,61995.0,0.056453]
[1728148525764,0.00242068,61996.0,61995.0,0.22467626]
[1728148526251,0.00242068,61996.0,61995.0,0.176453]
[1728148526654,0.00642068,61996.0,61995.0,0.176453]
[1728148528864,0.00942068,61996.0,61995.0,0.176453]
[1728148529771,0.00942068,61996.0,61995.0,0.20548253]
[1728148530868,0.3608,62000.0,61999.0,0.056449]
[1728148531171,0.3608,62000.0,61999.0,0.176449]
[1728148531357,0.52460499,62000.0,61997.0,0.12]
[1728148531554,0.10735599,61999.0,61997.0,0.12]
[1728148532359,0.04950721,61998.0,61997.0,0.12]
[1728148532759,0.04950721,61999.0,61997.0,0.12]
[1728148532963,0.04950721,61998.0,61997.0,0.12]
[1728148533161,0.04950721,61999.0,61997.0,0.176451]
[1728148533360,0.12829778,62000.0,61997.0,0.176451]
[1728148533361,0.05450721,61998.0,61997.0,0.176451]
[1728148533563,0.05450721,61998.0,61997.0,0.056451]
[1728148533966,0.04950721,61998.0,61997.0,0.056451]
[1728148535074,0.05050716,61998.0,61997.0,0.056451]
[1728148535567,0.05550716,61998.0,61997.0,0.056451]
[1728148538373,0.006,61998.0,61997.0,0.056451]
[1728148547075,0.05550734,61998.0,61997.0,0.056451]
[1728148553369,0.006,61998.0,61997.0,0.056451]
[1728148554184,0.006,61998.0,61997.0,0.10481747]
[1728148554370,0.006,61998.0,61997.0,0.056451]
[1728148554780,0.006,61998.0,61997.0,0.10483718]
[1728148554983,0.006,61998.0,61997.0,0.05263718]
[1728148555580,0.006,61998.0,61997.0,0.17263718]
[1728148560569,0.006,61998.0,61997.0,0.05263718]
[1728148560784,0.006,61998.0,61997.0,0.17263718]
[1728148561384,0.05550736,61998.0,61997.0,0.17263718]
[1728148562474,0.11335632,61998.0,61997.0,0.17263718]
[1728148563771,0.05550736,61998.0,61997.0,0.17263718]
[1728148566786,0.26409351,61998.0,61997.0,0.17263718]
[1728148567385,0.05550736,61998.0,61997.0,0.17263718]
[1728148568382,0.006,61998.0,61997.0,0.2955507]
[1728148571877,0.006,61998.0,61997.0,0.2955487]
[1728148576377,0.006,61998.0,61997.0,0.17263718]
[1728148583400,0.0151,62004.0,62003.0,0.056446]
[1728148583590,0.032,62010.0,62009.0,0.05644]
[1728148583898,0.032,62010.0,62009.0,0.17644]
[1728148583899,0.08149964,62010.0,62009.0,0.17644]
[1728148584591,0.04949964,62010.0,62009.0,0.17644]
[1728148584790,0.05749964,62010.0,62009.0,0.17744]
[1728148586098,0.05749551,62010.0,62009.0,0.17744]
[1728148586293,0.05749551,62010.0,62009.0,0.17644]
[1728148586498,0.05449551,62010.0,62009.0,0.17844]
[1728148587190,0.05449551,62010.0,62009.0,0.17744]
[1728148587191,0.05249551,62010.0,62009.0,0.17744]
[1728148587399,0.05349551,62010.0,62009.0,0.17844]
[1728148588596,0.05349551,62010.0,62009.0,0.20703372]
[1728148588794,0.0151,62017.0,62012.0,0.056437]
[1728148588795,0.17619619,62013.0,62012.0,0.056437]
[1728148589108,0.10494213,62021.0,62014.0,0.056436]
[1728148590501,0.0471,62021.0,62014.0,0.056436]
[1728148590695,0.00341932,62015.0,62014.0,0.056436]
[1728148591303,0.002,62015.0,62014.0,0.056436]
[1728148591501,0.0151,62021.0,62014.0,0.056436]
[1728148591502,0.0151,62021.0,62020.0,0.05643]
[1728148591798,0.0324,62022.0,62021.0,0.056429]
[1728148593797,0.0324,62022.0,62021.0,0.059429]
[1728148600409,0.1524,62022.0,62021.0,0.059429]
[1728148600616,0.1524,62022.0,62014.0,0.38994826]
[1728148600911,0.1524,62022.0,62018.0,0.056432]
[1728148600912,0.088828,62022.0,62018.0,0.056432]
[1728148602013,0.12,62019.0,62014.0,0.008]
[1728148602206,0.12,62015.0,62010.0,0.056439]
[1728148602409,0.12,62011.0,62010.0,0.056439]
[1728148603614,0.12,62011.0,62010.0,0.068439]
[1728148603803,0.12,62011.0,62010.0,0.081439]
[1728148604611,0.0624,62014.0,62010.0,0.145]
[1728148604811,0.1824,62014.0,62012.0,0.056437]
[1728148605615,0.04949774,62013.0,62012.0,0.056437]
[1728148605910,0.04949774,62013.0,62012.0,0.067437]
[1728148606917,0.04949774,62013.0,62012.0,0.056437]
[1728148607107,0.04949774,62013.0,62012.0,0.067437]
[1728148608008,0.05049774,62013.0,62012.0,0.076437]
[1728148613216,0.10833546,62013.0,62012.0,0.076437]
[1728148613613,0.001,62013.0,62012.0,0.076437]
[1728148615113,0.001,62013.0,62012.0,0.196437]
[1728148619415,0.001,62013.0,62012.0,0.076437]
[1728148630734,0.057436,62013.0,62012.0,0.02]
[1728148633630,0.541196,62013.0,62012.0,0.02]
[1728148633827,0.056442,62007.0,62006.0,0.08051002]
[1728148634031,0.176442,62007.0,62006.0,0.08051002]
[1728148634338,0.176442,62007.0,62006.0,0.06451448]
[1728148634538,0.12,62007.0,62005.0,0.48175748]
[1728148634728,0.056443,62006.0,62005.0,0.48175748]
[1728148635634,0.056443,62006.0,62005.0,0.49575748]
[1728148636532,0.056443,62006.0,62005.0,0.431243]
[1728148636731,0.057443,62006.0,62005.0,0.441243]
[1728148637235,0.10794504,62006.0,62005.0,0.016]
[1728148639234,0.46874504,62006.0,62005.0,0.016]
[1728148639537,0.52658778,62006.0,62005.0,0.016]
[1728148640934,0.49981982,62006.0,62005.0,0.016]
[1728148641633,0.49981982,62006.0,62005.0,0.072444]
[1728148641840,0.49982155,62006.0,62005.0,0.072444]
[1728148644131,0.35212607,62006.0,62005.0,0.27585698]
[1728148644331,0.02967504,62006.0,62005.0,0.27585698]
[1728148644537,0.12,62007.0,62006.0,0.056443]
[1728148645534,0.14897482,62007.0,62006.0,0.056443]
[1728148645733,0.14997482,62007.0,62006.0,0.066443]
[1728148646837,0.15097482,62007.0,62006.0,0.080443]
[1728148648037,0.15097482,62007.0,62006.0,0.14489625]
[1728148648541,0.15097482,62007.0,62006.0,0.14489366]